bitfinex-derivatives/quotes_BTCF0:USTF0_20241104
["timestamp","ask_amount","ask_price","bid_price","bid_amount"]
[1730695089329,0.08057082,69247.0,69246.0,0.1644037]
[1730695089730,0.09457082,69247.0,69246.0,0.1654037]
[1730695092434,0.16682282,69247.0,69246.0,0.1654037]
[1730695095242,0.133352,69247.0,69246.0,0.26175954]
[1730695095942,0.133352,69247.0,69246.0,0.23754818]
[1730695096244,0.133352,69247.0,69246.0,0.1654037]
[1730695104640,0.133352,69247.0,69246.0,0.002]
[1730695104839,0.133352,69247.0,69246.0,0.1654037]
[1730695108452,0.028,69247.0,69246.0,0.1654037]
[1730695108654,0.028,69247.0,69246.0,0.3529655]
[1730695109146,0.028,69247.0,69246.0,0.3233148]
[1730695109352,0.028,69247.0,69246.0,0.2269037]
[1730695110359,0.025,69247.0,69246.0,0.2269037]
[1730695111252,0.011,69247.0,69246.0,0.2259037]
[1730695111553,0.02,69247.0,69246.0,0.2269037]
[1730695115546,0.02,69247.0,69246.0,0.5877037]
[1730695117244,0.02,69247.0,69246.0,0.68347459]
[1730695124255,0.02,69247.0,69246.0,0.5877037]
[1730695127665,0.02,69247.0,69246.0,0.2269037]
[1730695138168,0.02,69247.0,69246.0,0.32313844]
[1730695139367,0.05353907,69247.0,69246.0,0.2269037]
[1730695142663,0.3608,69258.0,69251.0,0.072248]
[1730695142862,0.3608,69258.0,69256.0,0.072242]
[1730695142863,0.03909898,69257.0,69256.0,0.072242]
[1730695143768,0.03909898,69257.0,69256.0,0.1633927]
[1730695143769,0.0391961,69257.0,69256.0,0.1633927]
[1730695143972,0.0521961,69257.0,69256.0,0.1643927]
[1730695144575,0.0521961,69257.0,69256.0,0.073242]
[1730695146667,0.014,69257.0,69256.0,0.074242]
[1730695147063,0.014,69257.0,69256.0,0.1052436]
[1730695148070,0.014,69257.0,69256.0,0.27356039]
[1730695148264,0.014,69257.0,69256.0,0.17740467]
[1730695148769,0.44716,69257.0,69254.0,0.02426107]
[1730695149075,0.072243,69255.0,69254.0,0.072244]
[1730695149267,0.072243,69255.0,69254.0,0.1633947]
[1730695149977,0.072243,69255.0,69254.0,0.1643947]
[1730695150170,0.072243,69255.0,69254.0,0.1653947]
[1730695150674,0.073243,69255.0,69254.0,0.22310423]
[1730695151178,0.073243,69255.0,69254.0,0.22310222]
[1730695151375,0.073243,69255.0,69254.0,0.1653947]
[1730695151572,0.073243,69255.0,69254.0,0.22210184]
[1730695151779,0.083243,69255.0,69254.0,0.1653947]
[1730695162401,0.1559659,69255.0,69254.0,0.1653947]
[1730695169499,0.083243,69255.0,69254.0,0.1653947]
[1730695181216,0.083243,69255.0,69254.0,0.074244]
[1730695181911,0.083243,69255.0,69254.0,0.002]
[1730695182113,0.5497771,69255.0,69254.0,0.002]
[1730695183707,0.516443,69255.0,69254.0,0.002]
[1730695184612,0.58774477,69255.0,69254.0,0.002]
[1730695186215,0.18525228,69255.0,69254.0,0.002]
[1730695187314,0.61845228,69255.0,69254.0,0.002]
[1730695190518,0.61827901,69255.0,69254.0,0.002]
[1730695190909,0.66263752,69255.0,69254.0,0.002]
[1730695192722,0.54715051,69255.0,69254.0,0.002]
[1730695196023,0.11395051,69255.0,69254.0,0.002]
[1730695197119,0.21307051,69255.0,69254.0,0.002]
[1730695202118,0.11395051,69255.0,69254.0,0.002]
[1730695202324,0.083243,69255.0,69254.0,0.1653947]
[1730695203533,0.1166456,69255.0,69254.0,0.1653947]
[1730695204323,0.1166456,69255.0,69254.0,0.19548748]
[1730695204524,0.083243,69255.0,69254.0,0.19548748]
[1730695205231,0.083243,69255.0,69254.0,0.10433678]
[1730695205433,0.083243,69255.0,69254.0,0.074244]
[1730695205636,0.083243,69255.0,69254.0,0.002]
[1730695210439,0.1161979,69255.0,69254.0,0.002]
[1730695211531,0.11619968,69255.0,69254.0,0.002]
[1730695211740,0.083243,69255.0,69254.0,0.002]
[1730695212636,0.11628082,69255.0,69254.0,0.002]
[1730695212836,0.11624347,69255.0,69254.0,0.002]
[1730695213727,0.083243,69255.0,69254.0,0.002]
[1730695214131,0.11628639,69255.0,69254.0,0.002]
[1730695214345,0.083243,69255.0,69254.0,0.002]
[1730695215739,0.35792795,69255.0,69254.0,0.002]
[1730695215927,0.35792795,69255.0,69233.0,0.072266]
[1730695215928,0.67683565,69255.0,69233.0,0.072266]
[1730695216128,0.67683565,69255.0,69235.0,0.0643]
[1730695216129,0.5242097,69240.0,69235.0,0.0643]
[1730695216328,0.69458368,69240.0,69235.0,0.136563]
[1730695216632,0.5650865,69240.0,69237.0,0.0911507]
[1730695216833,0.5650865,69240.0,69237.0,0.1634117]
[1730695217029,0.5650865,69240.0,69239.0,0.00316632]
[1730695218142,0.5670865,69240.0,69239.0,0.00316632]
[1730695218539,0.5680865,69240.0,69239.0,0.00216632]
[1730695219038,0.4690865,69240.0,69239.0,0.00216632]
[1730695219341,0.4690865,69240.0,69239.0,0.07442632]
[1730695220141,0.4690865,69240.0,69239.0,0.00216632]
[1730695220337,0.59854366,69240.0,69239.0,0.00216632]
[1730695223137,0.5706491,69240.0,69235.0,0.0643]
[1730695223341,0.072263,69236.0,69235.0,0.0643]
[1730695223660,0.072263,69236.0,69235.0,0.12200591]
[1730695223941,0.1634137,69236.0,69235.0,0.12200591]
[1730695224535,0.1634137,69236.0,69234.0,0.07594156]
[1730695224745,0.433064,69235.0,69234.0,0.0327]
[1730695225333,0.433064,69235.0,69234.0,0.07594156]
[1730695225639,0.072265,69234.0,69233.0,0.04324156]
[1730695225834,0.1634157,69234.0,69233.0,0.04324156]
[1730695226041,0.072265,69234.0,69233.0,0.04324156]
[1730695226249,0.072265,69234.0,69232.0,0.0911507]
[1730695226452,0.3618,69235.0,69232.0,0.0911507]
[1730695226637,0.3608,69235.0,69234.0,0.1634157]
[1730695227441,0.3608,69235.0,69234.0,0.1774157]
[1730695228741,0.3608,69235.0,69234.0,0.2206058]
[1730695228931,0.3618,69235.0,69234.0,0.1294551]
[1730695229132,0.3618,69235.0,69234.0,0.086265]
[1730695229535,0.3608,69235.0,69234.0,0.086265]
[1730695229733,0.3618,69235.0,69234.0,0.099265]
[1730695235242,0.434064,69235.0,69234.0,0.099265]
[1730695237740,0.434064,69235.0,69234.0,0.027]
[1730695247757,0.434064,69235.0,69234.0,0.099265]
[1730695249155,0.3618,69235.0,69234.0,0.099265]
[1730695249357,0.3618,69235.0,69234.0,0.1904157]
[1730695249561,0.3618,69235.0,69234.0,0.23370738]
[1730695250055,0.3618,69235.0,69234.0,0.2337092]
[1730695251451,0.3618,69235.0,69234.0,0.1904157]
[1730695251652,0.3618,69235.0,69234.0,0.23369904]
[1730695252055,0.3618,69235.0,69234.0,0.1904157]
[1730695253767,0.3618,69235.0,69234.0,0.28697907]
[1730695255854,0.3618,69235.0,69234.0,0.28233265]
[1730695256371,0.3618,69235.0,69234.0,0.28233249]
[1730695256560,0.3618,69235.0,69234.0,0.19579737]
[1730695260764,0.3618,69235.0,69234.0,0.099265]
[1730695261661,0.001,69235.0,69234.0,0.099265]
[1730695261864,0.36296717,69248.0,69234.0,0.76914183]
[1730695262067,0.36296717,69248.0,69247.0,0.072252]
[1730695262572,0.52636887,69248.0,69247.0,0.138152]
[1730695262967,0.52736887,69248.0,69247.0,0.138152]
[1730695263567,0.52736887,69248.0,69247.0,0.072252]
[1730695263768,0.52736887,69248.0,69244.0,0.072254]
[1730695263769,0.072255,69245.0,69244.0,0.072254]
[1730695263967,0.1634057,69245.0,69244.0,0.072254]
[1730695264780,0.46011787,69248.0,69242.0,0.0314]
[1730695265078,0.53236887,69248.0,69246.0,0.072252]
[1730695265668,0.52636887,69248.0,69246.0,0.072252]
[1730695266066,0.072252,69247.0,69246.0,0.072252]
[1730695266671,0.072252,69247.0,69246.0,0.073252]
[1730695266867,0.072252,69247.0,69246.0,0.001]
[1730695267369,0.136652,69247.0,69246.0,0.001]
[1730695267570,0.168252,69247.0,69246.0,0.001]
[1730695267772,0.168252,69247.0,69246.0,0.002]
[1730695268181,0.168252,69247.0,69246.0,0.001]
[1730695268376,0.168252,69247.0,69246.0,0.002]
[1730695268572,0.2594027,69247.0,69246.0,0.002]
[1730695268774,0.072256,69243.0,69239.0,0.04324263]
[1730695268973,0.2644027,69247.0,69237.0,0.072262]
[1730695268974,0.5242097,69240.0,69238.0,0.04324263]
[1730695269176,0.3608,69240.0,69239.0,0.11550263]
[1730695269476,0.3608,69240.0,69239.0,0.07226]
[1730695271880,0.3628,69240.0,69239.0,0.07226]
[1730695272385,0.3648,69240.0,69239.0,0.07226]
[1730695275286,0.437059,69240.0,69239.0,0.07226]
[1730695275888,0.3648,69240.0,69239.0,0.07226]
[1730695276682,0.004,69240.0,69239.0,0.16882572]
[1730695276883,0.3648,69240.0,69239.0,0.16882572]
[1730695283888,0.3648,69240.0,69239.0,0.07226]
[1730695287487,0.39797778,69240.0,69239.0,0.07226]
[1730695287881,0.39797778,69240.0,69235.0,0.072264]
[1730695287882,0.072263,69236.0,69235.0,0.072264]
[1730695288187,0.10544078,69236.0,69235.0,0.072264]
[1730695288885,0.19659148,69236.0,69235.0,0.072264]
[1730695289087,0.12432848,69236.0,69235.0,0.084264]
[1730695289475,0.12432848,69236.0,69235.0,0.096264]
[1730695289676,0.12432848,69236.0,69235.0,0.024]
[1730695289677,0.19659148,69236.0,69235.0,0.024]
[1730695290187,0.23445453,69236.0,69235.0,0.024]
[1730695290589,0.19659148,69236.0,69235.0,0.024]
[1730695290784,0.1634137,69236.0,69235.0,0.024]
[1730695293080,0.19450976,69236.0,69235.0,0.024]
[1730695297799,0.1634137,69236.0,69235.0,0.024]
[1730695305911,0.19591495,69236.0,69235.0,0.024]
[1730695306402,0.10476425,69236.0,69235.0,0.024]
[1730695307305,0.72300001,69240.0,69235.0,0.024]
[1730695307611,0.072262,69238.0,69237.0,0.072262]
[1730695307803,0.10492902,69238.0,69237.0,0.072262]
[1730695309304,0.072263,69236.0,69235.0,0.024]
[1730695309498,0.19608072,69236.0,69235.0,0.024]
[1730695309698,0.19608072,69236.0,69235.0,0.012]
[1730695309905,0.19608072,69236.0,69235.0,0.01]
[1730695310607,0.1960759,69236.0,69235.0,0.012]
[1730695310909,0.1960759,69236.0,69235.0,0.024]
[1730695313902,0.1634137,69236.0,69235.0,0.024]
[1730695315303,0.072263,69236.0,69235.0,0.024]
[1730695315507,0.072261,69238.0,69237.0,0.072262]
[1730695316713,0.072261,69238.0,69237.0,0.077262]
[1730695316910,0.072261,69238.0,69237.0,0.082262]
[1730695319005,0.072261,69238.0,69237.0,0.11341839]
[1730695321312,0.10519136,69238.0,69237.0,0.11341839]
[1730695321514,0.03293036,69238.0,69237.0,0.11341839]
[1730695323323,0.3608,69247.0,69246.0,0.072253]
[1730695323519,0.3608,69247.0,69246.0,0.1634037]
[1730695323520,0.39425508,69247.0,69246.0,0.1634037]
[1730695324408,0.39425508,69247.0,69237.0,0.11341739]
[1730695324409,0.072261,69238.0,69237.0,0.11341739]
[1730695324610,0.10560498,69238.0,69237.0,0.01]
[1730695324809,0.10560498,69238.0,69237.0,0.005]
[1730695325014,0.14386444,69238.0,69237.0,0.005]
[1730695325921,0.14386444,69238.0,69237.0,0.01]
[1730695326420,0.17656444,69238.0,69237.0,0.005]
[1730695327019,0.17656444,69238.0,69237.0,0.01]
[1730695327708,0.20679968,69238.0,69237.0,0.01]
[1730695328219,0.13519624,69238.0,69237.0,0.06759305]
[1730695329322,0.13519624,69238.0,69237.0,0.01]
[1730695335825,0.10249624,69238.0,69237.0,0.01]
[1730695336230,0.17340423,69238.0,69237.0,0.01]
[1730695336822,0.17340602,69238.0,69237.0,0.01]
[1730695337522,0.13530894,69238.0,69237.0,0.01]
[1730695337922,0.17341424,69238.0,69237.0,0.01]
[1730695339027,0.13530894,69238.0,69237.0,0.01]
[1730695340029,0.17342043,69238.0,69237.0,0.01]
[1730695340933,0.13530894,69238.0,69237.0,0.01]
[1730695341436,0.17341167,69238.0,69237.0,0.01]
[1730695341623,0.13530894,69238.0,69237.0,0.01]
[1730695343432,0.10249624,69238.0,69237.0,0.01]
[1730695355741,0.62692694,69238.0,69237.0,0.007]
[1730695355933,0.6923695,69238.0,69237.0,0.007]
[1730695356342,0.6012188,69238.0,69237.0,0.007]
[1730695356535,0.56877624,69238.0,69237.0,0.007]
[1730695357040,0.072269,69230.0,69229.0,0.04316995]
[1730695357237,0.6230997,69230.0,69229.0,0.04316995]
[1730695357440,0.072271,69229.0,69228.0,0.04316995]
[1730695358239,0.072271,69229.0,69224.0,0.11989305]
[1730695358240,0.06980089,69229.0,69224.0,0.0623]
[1730695358439,0.1634257,69225.0,69224.0,0.0623]
[1730695358641,0.19572527,69225.0,69224.0,0.0623]
[1730695359829,0.19572527,69225.0,69224.0,0.0763]
[1730695360229,0.19571003,69225.0,69224.0,0.0763]
[1730695360634,0.55751003,69225.0,69224.0,0.0903]
[1730695362631,0.55750549,69225.0,69224.0,0.0903]
[1730695363237,0.39407979,69225.0,69224.0,0.2537267]
[1730695363444,0.001,69225.0,69224.0,0.2537267]
[1730695366349,0.001,69225.0,69224.0,0.35053572]
[1730695366947,0.001,69225.0,69224.0,0.3805453]
[1730695369650,0.001,69225.0,69224.0,0.38048698]
[1730695372553,0.3608,69230.0,69224.0,0.38048698]
[1730695372554,0.3608,69230.0,69229.0,0.072271]
[1730695372752,0.3608,69230.0,69229.0,0.34649974]
[1730695372953,0.3608,69230.0,69229.0,0.2601724]
[1730695373449,0.3608,69230.0,69229.0,0.1634217]
[1730695373842,0.3608,69230.0,69229.0,0.1684217]
[1730695375754,0.3608,69230.0,69229.0,0.1734217]
[1730695381462,0.3608,69230.0,69229.0,0.26983088]
[1730695387065,0.3608,69230.0,69229.0,0.26980159]
[1730695390462,0.3608,69230.0,69229.0,0.17865089]
[1730695391863,0.3608,69230.0,69229.0,0.17868105]
[1730695392259,0.3608,69230.0,69229.0,0.26499612]
[1730695393262,0.3608,69230.0,69229.0,0.17868105]
[1730695393566,0.3608,69230.0,69229.0,0.26497626]
[1730695394074,0.3608,69230.0,69229.0,0.35612696]
[1730695394365,0.3608,69230.0,69229.0,0.26983175]
[1730695394666,0.072265,69234.0,69233.0,0.072266]
[1730695394863,0.072265,69234.0,69233.0,0.16867605]
[1730695395473,0.5242157,69234.0,69233.0,0.09641005]
[1730695395768,0.072266,69233.0,69230.0,0.07188791]
[1730695395964,0.0911507,69231.0,69229.0,0.07188791]
[1730695396274,0.072269,69230.0,69229.0,0.07188791]
[1730695396455,0.072269,69230.0,69228.0,0.072271]
[1730695396853,0.072269,69230.0,69229.0,0.072271]
[1730695398560,0.072269,69230.0,69229.0,0.077271]
[1730695399064,0.072269,69230.0,69229.0,0.082271]
[1730695400268,0.433069,69230.0,69229.0,0.082271]
[1730695405166,0.433069,69230.0,69229.0,0.01]
[1730695406464,0.433069,69230.0,69229.0,0.06751194]
[1730695407170,0.433069,69230.0,69229.0,0.01]
[1730695408070,0.433069,69230.0,69229.0,0.06751967]
[1730695409163,0.5242197,69230.0,69229.0,0.06751967]
[1730695409370,0.531909,69230.0,69229.0,0.01]
[1730695409876,0.6230597,69230.0,69229.0,0.01]
[1730695410474,1.0564197,69230.0,69229.0,0.01]
[1730695411575,1.08832681,69230.0,69229.0,0.01]
[1730695411968,1.12538843,69230.0,69229.0,0.01]
[1730695412665,1.12538843,69230.0,69229.0,0.005]
[1730695412867,1.12638843,69230.0,69229.0,0.006]
[1730695413274,1.12638843,69230.0,69229.0,0.001]
[1730695413473,1.13338843,69230.0,69229.0,0.002]
[1730695414175,0.072286,69214.0,69213.0,0.02984652]
[1730695414367,0.07229,69210.0,69209.0,0.00216726]
[1730695414571,0.1634407,69210.0,69209.0,0.00216726]
[1730695415574,0.1634407,69210.0,69209.0,0.01616726]
[1730695416868,0.1644407,69210.0,69209.0,0.02916726]
[1730695417379,0.1644407,69210.0,69209.0,0.01516726]
[1730695417672,0.1654407,69210.0,69209.0,0.02816726]
[1730695418364,0.1644407,69210.0,69209.0,0.01616726]
[1730695418569,0.1654407,69210.0,69209.0,0.02816726]
[1730695419974,0.19563826,69210.0,69209.0,0.02816726]
[1730695420969,0.19563826,69210.0,69209.0,0.026]
[1730695421171,0.28678896,69210.0,69209.0,0.026]
[1730695421375,0.72026896,69210.0,69209.0,0.026]
[1730695422272,0.62911826,69210.0,69209.0,0.026]
[1730695423076,0.63811826,69210.0,69209.0,0.015]
[1730695423283,0.72926896,69210.0,69200.0,0.1]
[1730695423488,0.8850507,69201.0,69200.0,0.1]
[1730695423689,0.9838507,69201.0,69200.0,0.1]
[1730695424486,0.9838507,69201.0,69200.0,0.101]
[1730695424984,0.9858507,69201.0,69200.0,0.101]
[1730695426284,0.9878507,69201.0,69200.0,0.1]
[1730695427983,1.01772492,69201.0,69200.0,0.1]
[1730695428694,1.01772492,69201.0,69189.0,0.0947]
[1730695428695,0.072311,69190.0,69189.0,0.0947]
[1730695428877,0.5242617,69190.0,69189.0,0.0947]
[1730695429077,0.6230617,69190.0,69189.0,0.0947]
[1730695429483,0.6230617,69190.0,69177.0,0.00216808]
[1730695429484,0.072323,69180.0,69177.0,0.00216808]
[1730695429782,0.1634737,69180.0,69178.0,0.094]
[1730695430086,0.3608,69179.0,69178.0,0.094]
[1730695431378,0.3618,69179.0,69178.0,0.096]
[1730695431579,0.435123,69179.0,69178.0,0.107]
[1730695432181,0.533923,69179.0,69178.0,0.107]
[1730695433083,0.6250737,69179.0,69178.0,0.0744]
[1730695433281,0.533923,69179.0,69178.0,0.0744]
[1730695433682,0.532923,69179.0,69178.0,0.0634]
[1730695433884,0.533923,69179.0,69178.0,0.0724]
[1730695434276,0.6240737,69179.0,69178.0,0.009]
[1730695434582,0.6551009,69179.0,69178.0,0.009]
[1730695434889,0.5262737,69179.0,69178.0,0.009]
[1730695435187,0.31213399,69179.0,69178.0,0.1724747]
[1730695435388,0.16243399,69179.0,69178.0,0.1724747]
[1730695435578,0.16243399,69179.0,69178.0,0.21561998]
[1730695436381,0.16243399,69179.0,69178.0,0.1724747]
[1730695437288,0.002,69179.0,69178.0,0.13884367]
[1730695438385,0.002,69179.0,69178.0,0.081324]
[1730695440395,0.002,69179.0,69178.0,0.11216135]
[1730695442384,0.002,69179.0,69178.0,0.18404926]
[1730695442792,0.002,69179.0,69178.0,0.081324]
[1730695442793,0.3628,69179.0,69178.0,0.081324]
[1730695443092,0.435123,69179.0,69178.0,0.081324]
[1730695443291,0.435123,69179.0,69178.0,0.06642225]
[1730695443489,0.435123,69179.0,69178.0,0.009]
[1730695445495,0.435123,69179.0,69178.0,0.06642225]
[1730695447294,0.435123,69179.0,69178.0,0.009]
[1730695447891,0.435123,69179.0,69178.0,0.06647154]
[1730695448186,0.435123,69179.0,69178.0,0.009]
[1730695457611,0.57408895,69179.0,69178.0,0.066605]
[1730695457817,0.435123,69179.0,69178.0,0.009]
[1730695457997,0.435123,69179.0,69178.0,0.05220899]
[1730695458200,0.435123,69179.0,69178.0,0.009]
[1730695458407,0.435123,69179.0,69178.0,0.05220899]
[1730695458811,0.435123,69179.0,69178.0,0.009]
[1730695459116,0.434123,69179.0,69177.0,0.04320899]
[1730695459317,0.6472717,69178.0,69177.0,0.04320899]
[1730695460301,0.6472717,69178.0,69177.0,0.04420899]
[1730695460508,0.6472717,69178.0,69177.0,0.058605]
[1730695460509,0.63014785,69178.0,69177.0,0.058605]
[1730695460704,0.63014785,69178.0,69177.0,0.001]
[1730695461305,0.538924,69178.0,69177.0,0.001]
[1730695461505,0.440124,69178.0,69177.0,0.001]
[1730695461900,0.440124,69178.0,69175.0,0.07188791]
[1730695461901,0.538924,69178.0,69175.0,0.07188791]
[1730695462209,0.543924,69178.0,69177.0,0.001]
[1730695463007,0.538924,69178.0,69175.0,0.07188791]
[1730695463311,0.543924,69178.0,69175.0,0.001]
[1730695463697,0.438124,69178.0,69175.0,0.001]
[1730695463902,0.438124,69178.0,69167.0,0.0746047]
[1730695463903,0.3728,69178.0,69177.0,0.001]
[1730695464709,0.3728,69178.0,69177.0,0.073325]
[1730695465301,0.3728,69178.0,69177.0,0.072325]
[1730695465302,0.3678,69178.0,69177.0,0.072325]
[1730695465611,0.3728,69178.0,69177.0,0.072325]
[1730695466208,0.3728,69178.0,69177.0,0.073325]
[1730695467515,0.012,69178.0,69177.0,0.073325]
[1730695468319,0.36220001,69187.0,69186.0,0.072315]
[1730695468520,0.072312,69189.0,69180.0,0.18219194]
[1730695468812,0.072313,69189.0,69185.0,0.072316]
[1730695469017,0.072313,69189.0,69186.0,0.072315]
[1730695469206,0.072313,69189.0,69180.0,0.18219194]
[1730695469207,0.072313,69189.0,69188.0,0.072313]
[1730695469716,0.100313,69189.0,69188.0,0.072313]
[1730695469908,0.028,69189.0,69188.0,0.072313]
[1730695470820,0.014,69189.0,69188.0,0.072313]
[1730695471019,0.028,69189.0,69188.0,0.072313]
[1730695471716,0.028,69189.0,69187.0,0.05758803]
[1730695471917,0.028,69189.0,69184.0,0.36156]
[1730695471918,0.011,69189.0,69188.0,0.23796508]
[1730695472109,0.3608,69208.0,69188.0,0.61887342]
[1730695472312,0.0723,69201.0,69200.0,0.04315167]
[1730695472512,0.13898724,69201.0,69198.0,0.04315167]
[1730695472919,0.13898724,69201.0,69197.0,0.04315167]
[1730695473120,0.072303,69198.0,69197.0,0.04315167]
[1730695473315,0.072303,69198.0,69196.0,0.04315167]
[1730695473815,0.16198724,69201.0,69196.0,0.04315167]
[1730695474016,0.14998724,69201.0,69196.0,0.04315167]
[1730695474323,0.23428724,69201.0,69197.0,0.001]
[1730695475316,0.22328724,69201.0,69197.0,0.001]
[1730695475623,0.21128724,69201.0,69196.0,0.074305]
[1730695475918,0.0723,69201.0,69196.0,0.074305]
[1730695476309,0.3608,69202.0,69197.0,0.002]
[1730695476513,0.072303,69198.0,69197.0,0.002]
[1730695476819,0.072303,69198.0,69197.0,0.001]
[1730695477027,0.072303,69198.0,69196.0,0.001]
[1730695477224,0.072303,69198.0,69196.0,0.002]
[1730695478534,0.072303,69198.0,69197.0,0.001]
[1730695479025,0.072303,69198.0,69196.0,0.001]
[1730695479231,0.012,69198.0,69197.0,0.001]
[1730695479533,0.012,69198.0,69197.0,0.073304]
[1730695479724,0.012,69198.0,69197.0,0.074304]
[1730695480236,0.012,69198.0,69197.0,0.073304]
[1730695481922,0.006,69198.0,69197.0,0.073304]
[1730695482224,0.012,69198.0,69197.0,0.074304]
[1730695483025,0.012,69198.0,69197.0,0.002]
[1730695486024,0.012,69198.0,69197.0,0.074304]
[1730695487329,0.012,69198.0,69197.0,0.16547206]
[1730695488424,0.012,69198.0,69197.0,0.19533241]
[1730695489318,0.012,69198.0,69197.0,0.24308998]
[1730695495231,0.012,69198.0,69197.0,0.30065325]
[1730695496323,0.012,69198.0,69197.0,0.24308998]
[1730695497136,0.012,69198.0,69197.0,0.67664998]
[1730695497726,0.0329,69214.0,69213.0,0.072287]
[1730695497935,0.0617,69225.0,69214.0,0.072286]
[1730695498131,0.07228,69220.0,69214.0,0.1154188]
[1730695498341,0.07228,69220.0,69214.0,0.072286]
[1730695498637,0.072281,69219.0,69214.0,0.072286]
[1730695499038,0.072284,69217.0,69214.0,0.072286]
[1730695499234,0.072284,69217.0,69214.0,0.11540741]
[1730695500343,0.072284,69217.0,69214.0,0.11540916]
[1730695500542,0.072284,69217.0,69214.0,0.11640915]
[1730695500738,0.03249932,69216.0,69214.0,0.073286]
[1730695500940,0.03471747,69215.0,69214.0,0.1040674]
[1730695502133,0.03254913,69215.0,69214.0,0.1040674]
[1730695506637,0.133975,69225.0,69224.0,0.072276]
[1730695506844,0.20439202,69225.0,69224.0,0.072276]
[1730695507839,0.20439202,69225.0,69224.0,0.073276]
[1730695508135,0.13211702,69225.0,69224.0,0.074276]
[1730695508644,0.0617,69225.0,69224.0,0.074276]
[1730695514751,0.15284907,69225.0,69224.0,0.002]
[1730695514951,0.22512407,69225.0,69224.0,0.002]
[1730695515553,0.133975,69225.0,69224.0,0.002]
[1730695515753,0.072278,69222.0,69217.0,0.16343207]
[1730695516058,0.43044,69221.0,69217.0,0.16343207]
[1730695516257,0.06964,69220.0,69217.0,0.16343207]
[1730695517052,0.06964,69220.0,69217.0,0.16443207]
[1730695517251,0.06964,69220.0,69217.0,0.16543207]
[1730695517452,0.14450247,69219.0,69217.0,0.16543207]
[1730695517658,0.27296905,69219.0,69217.0,0.09207093]
[1730695517856,0.27296905,69218.0,69217.0,0.09307093]
[1730695518047,0.11401634,69218.0,69217.0,0.09307093]
[1730695518248,0.11401634,69218.0,69217.0,0.074283]
[1730695518456,0.27296905,69218.0,69217.0,0.074283]
[1730695518659,0.16587077,69218.0,69217.0,0.001]
[1730695518868,0.16587077,69218.0,69217.0,0.002]
[1730695519052,0.32482348,69218.0,69217.0,0.002]
[1730695519247,0.16587077,69218.0,69217.0,0.002]
[1730695519455,0.16587077,69218.0,69217.0,0.001]
[1730695519761,0.11601634,69218.0,69217.0,0.002]
[1730695519957,0.2746763,69218.0,69217.0,0.002]
[1730695520162,0.32653073,69218.0,69217.0,0.074283]
[1730695520756,0.32655122,69218.0,69217.0,0.074283]
[1730695520961,0.16787077,69218.0,69217.0,0.074283]
[1730695521264,0.28913695,69218.0,69217.0,0.074283]
[1730695521460,0.26029507,69218.0,69217.0,0.074283]
[1730695521962,0.26029507,69218.0,69217.0,0.16543207]
[1730695522456,0.26031429,69218.0,69217.0,0.16543207]
[1730695522766,0.11601634,69218.0,69217.0,0.16543207]
[1730695523765,0.002,69218.0,69217.0,0.16543207]
[1730695524270,0.002,69218.0,69217.0,0.09314907]
[1730695524465,0.074282,69218.0,69217.0,0.09314907]
[1730695525764,0.074282,69218.0,69217.0,0.002]
[1730695527766,0.10432834,69218.0,69217.0,0.002]
[1730695528368,0.002,69218.0,69217.0,0.09314907]
[1730695528564,0.002,69218.0,69217.0,0.16543207]
[1730695528769,0.002,69218.0,69217.0,0.66050457]
[1730695529064,0.002,69218.0,69217.0,0.61738114]
[1730695530063,0.001,69218.0,69217.0,0.61738114]
[1730695531164,0.001,69218.0,69217.0,0.52623207]
[1730695533868,0.001,69218.0,69217.0,0.55613242]
[1730695534064,0.001,69218.0,69217.0,0.61370398]
[1730695534265,0.001,69218.0,69217.0,0.25290398]
[1730695534578,0.001,69218.0,69217.0,0.19533242]
[1730695539080,0.03326235,69218.0,69217.0,0.19533242]
[1730695540778,0.07067071,69218.0,69217.0,0.19533242]
[1730695542067,0.07062391,69218.0,69217.0,0.19533242]
[1730695542467,0.03321768,69218.0,69217.0,0.28648149]
[1730695542672,0.001,69218.0,69217.0,0.64728149]
[1730695543075,0.07075174,69218.0,69217.0,0.55613242]
[1730695544078,0.07075174,69218.0,69217.0,0.64728149]
[1730695544380,0.07075174,69218.0,69217.0,0.55613242]
[1730695545668,0.07075174,69218.0,69217.0,0.64728149]
[1730695545865,0.001,69218.0,69217.0,0.64728149]
[1730695546179,0.00216734,69229.0,69228.0,0.072272]
[1730695546362,0.00216734,69229.0,69228.0,0.16342107]
[1730695548472,0.00216734,69229.0,69228.0,0.16442107]
[1730695548877,0.00216734,69229.0,69228.0,0.16542107]
[1730695551875,0.00216734,69229.0,69228.0,0.19636178]
[1730695553972,0.14650589,69229.0,69228.0,0.19636178]
[1730695554167,0.21713946,69229.0,69228.0,0.19636178]
[1730695554380,0.26150592,69229.0,69228.0,0.19636178]
[1730695554977,0.11716737,69229.0,69228.0,0.19636178]
[1730695556470,0.17918962,69229.0,69228.0,0.19636178]
[1730695556670,0.26150244,69229.0,69228.0,0.19636178]
[1730695558568,0.11716737,69229.0,69228.0,0.19636178]
[1730695560679,0.11717801,69229.0,69228.0,0.19636178]
[1730695560890,0.00216734,69229.0,69228.0,0.19636178]
[1730695561475,0.00216734,69229.0,69228.0,0.62972178]
[1730695562179,0.00216734,69229.0,69228.0,0.19636178]
[1730695562481,0.433063,69237.0,69236.0,0.072263]
[1730695562785,0.433063,69237.0,69236.0,0.16341207]
[1730695563993,0.433063,69237.0,69236.0,0.16541207]
[1730695564382,0.433063,69237.0,69236.0,0.074263]
[1730695565682,0.433063,69237.0,69236.0,0.002]
[1730695565881,0.072269,69230.0,69223.0,0.36156]
[1730695566089,0.072269,69230.0,69227.0,0.072273]
[1730695566090,0.4225,69229.0,69227.0,0.072273]
[1730695567091,0.4225,69229.0,69228.0,0.072272]